fUST/lending_fUST_20250904
["ID","MTS","AMOUNT","RATE_DAILY","PERIOD"]
[383531168,1756974651928,-196.4127428,0.00013698,2]
[383531169,1756974651938,-480.0,0.00013698,2]
[383531170,1756974651948,-1755.69,0.00013698,2]
[383531171,1756974651957,-480.0,0.00013698,2]
[383531172,1756974651967,-1000.0,0.00013698,2]
[383531173,1756974651976,-480.0,0.00013698,2]
[383531174,1756974651986,-480.0,0.00013698,2]
[383531175,1756974651996,-554.53063936,0.00013698,2]
[383531176,1756974652006,-1298.38,0.00013698,2]
[383531177,1756974652015,-481.79996414,0.00013698,2]
[383531178,1756974652024,-481.47079174,0.00013698,2]
[383531179,1756974652034,-480.0,0.00013698,2]
[383531180,1756974652044,-480.0,0.00013698,2]
[383531181,1756974652053,-670.24,0.00013698,2]
[383531182,1756974652063,-484.26534734,0.00013698,2]
[383531183,1756974652072,-480.0,0.00013698,2]
[383531184,1756974652082,-480.0,0.00013698,2]
[383531185,1756974652091,-480.0,0.00013698,2]
[383531186,1756974652101,-534.42359675,0.00013698,2]
[383531187,1756974652110,-480.0,0.00013698,2]
[383531188,1756974652119,-480.0,0.00013698,2]
[383531189,1756974652129,-480.0,0.00013698,2]
[383531190,1756974652142,-480.0,0.00013698,2]
[383531191,1756974652152,-482.08580054,0.00013698,2]
[383531192,1756974652161,-480.0,0.00013698,2]
[383531193,1756974652171,-481.70191099,0.00013698,2]
[383531194,1756974652181,-480.51329276,0.00013698,2]
[383531195,1756974652190,-480.0,0.00013698,2]
[383531196,1756974652199,-481.8922008,0.00013698,2]
[383531197,1756974652209,-480.0,0.00013698,2]
[383531198,1756974652220,-480.0,0.00013698,2]
[383531199,1756974652230,-480.0,0.00013698,2]
[383531200,1756974652239,-480.0,0.00013698,2]
[383531201,1756974652249,-481.92122701,0.00013698,2]
[383531202,1756974652258,-480.0,0.00013698,2]
[383531203,1756974652268,-480.0,0.00013698,2]
[383531204,1756974652277,-480.0,0.00013698,2]
[383531205,1756974652287,-461.81926655,0.00013698,2]
[383531206,1756974652296,-480.0,0.00013698,2]
[383531207,1756974652306,-481.38824484,0.00013698,2]
[383531208,1756974652317,-482.0518208,0.00013698,2]
[383531209,1756974652327,-480.0,0.00013698,2]
[383531210,1756974652338,-480.93593768,0.00013698,2]
[383531211,1756974652348,-480.0,0.00013698,2]
[383531212,1756974652359,-480.0,0.00013698,2]
[383531213,1756974652369,-480.0,0.00013698,2]
[383531214,1756974652379,-452.12532263,0.00013698,2]
[383531215,1756974652390,-480.0,0.00013698,2]
[383531216,1756974652484,-480.0,0.00013698,2]
[383531217,1756974652495,-480.0,0.00013698,2]
[383531218,1756974652506,-482.27886282,0.00013698,2]
[383531219,1756974652517,-480.0,0.00013698,2]
[383531220,1756974652527,-3611.09,0.00013698,2]
[383531221,1756974652536,-480.0,0.00013698,2]
[383531222,1756974652546,-480.0,0.00013698,2]
[383531223,1756974652556,-482.34961703,0.00013698,2]
[383531224,1756974652567,-480.0,0.00013698,2]
[383531225,1756974652576,-480.56681057,0.00013698,2]
[383531226,1756974652586,-480.78755981,0.00013698,2]
[383531227,1756974652595,-480.0,0.00013698,2]
[383531228,1756974652605,-480.0,0.00013698,2]
[383531229,1756974652614,-480.0,0.00013698,2]
[383531230,1756974652623,-480.82564481,0.00013698,2]
[383531231,1756974652633,-480.0,0.00013698,2]
[383531232,1756974652643,-480.0,0.00013698,2]
[383531233,1756974652654,-482.79201266,0.00013698,2]
[383531234,1756974652664,-480.0,0.00013698,2]
[383531235,1756974652674,-500.0,0.00013698,2]
[383531236,1756974652683,-501.37925764,0.00013698,2]
[383531237,1756974652695,-480.0,0.00013698,2]
[383531238,1756974652706,-481.84672492,0.00013698,2]
[383531239,1756974652716,-869.39,0.00013698,2]
[383531240,1756974652726,-869.39,0.00013698,2]
[383531241,1756974652736,-480.0,0.00013698,2]
[383531242,1756974652747,-481.79391283,0.00013698,2]
[383531243,1756974652757,-869.39,0.00013698,2]
[383531244,1756974652769,-869.39,0.00013698,2]
[383531245,1756974652779,-869.39,0.00013698,2]
[383531246,1756974652788,-869.39,0.00013698,2]
[383531247,1756974652798,-869.39,0.00013698,2]
[383531248,1756974652807,-869.39,0.00013698,2]
[383531249,1756974652817,-869.39,0.00013698,2]
[383531250,1756974652827,-869.39,0.00013698,2]
[383531251,1756974652838,-480.0,0.00013698,2]
[383531252,1756974652847,-480.0,0.00013698,2]
[383531253,1756974652857,-869.39,0.00013698,2]
[383531254,1756974652867,-869.39,0.00013698,2]
[383531255,1756974652876,-869.39,0.00013698,2]
[383531256,1756974652886,-869.39,0.00013698,2]
[383531257,1756974652895,-480.95832574,0.00013698,2]
[383531258,1756974652905,-869.39,0.00013698,2]
[383531259,1756974652915,-869.39,0.00013698,2]
[383531260,1756974652924,-869.39,0.00013698,2]
[383531261,1756974652934,-869.39,0.00013698,2]
[383531262,1756974652944,-869.39,0.00013698,2]
[383531263,1756974652954,-869.39,0.00013698,2]
[383531264,1756974652963,-2044.28,0.00013698,2]
[383531265,1756974652973,-480.0,0.00013698,2]
[383531266,1756974652983,-718.08,0.00013698,2]
[383531267,1756974652992,-869.39,0.00013698,2]
[383531268,1756974653003,-480.0,0.00013698,2]
[383531269,1756974653012,-869.39,0.00013698,2]
[383531270,1756974653022,-869.39,0.00013698,2]
[383531271,1756974653031,-869.48542405,0.00013698,2]
[383531272,1756974653041,-1043.2,0.00013698,2]
[383531273,1756974653050,-480.0,0.00013698,2]
[383531274,1756974653060,-480.0,0.00013698,2]
[383531275,1756974653070,-481.75557804,0.00013698,2]
[383531276,1756974653079,-527.78345291,0.00013698,2]
[383531277,1756974653090,-480.0,0.00013698,2]
[383531278,1756974653099,-449.25343,0.00013698,2]
[383531279,1756974653109,-449.25343,0.00013698,2]
[383531280,1756974653118,-480.0,0.00013698,2]
[383531281,1756974653127,-1619.47,0.00013698,2]
[383531282,1756974653140,-483.06744069,0.00013698,2]
[383531283,1756974653150,-449.25343,0.00013698,2]
[383531284,1756974653159,-449.25343,0.00013698,2]
[383531285,1756974653169,-480.0,0.00013698,2]
[383531286,1756974653179,-482.25893465,0.00013698,2]
[383531287,1756974653188,-449.25343,0.00013698,2]
[383531288,1756974653198,-480.0,0.00013698,2]
[383531289,1756974653207,-449.25343,0.00013698,2]
[383531290,1756974653217,-453.811493,0.00013698,2]
[383531291,1756974653227,-480.0,0.00013698,2]
[383531292,1756974653236,-480.0,0.00013698,2]
[383531293,1756974653246,-480.0,0.00013698,2]
[383531294,1756974653255,-449.25343,0.00013698,2]
[383531295,1756974653265,-449.253422,0.00013698,2]
[383531296,1756974653274,-480.0,0.00013698,2]
[383531297,1756974653284,-481.31797832,0.00013698,2]
[383531298,1756974653293,-480.0,0.00013698,2]
[383531299,1756974653303,-480.0,0.00013698,2]
[383531300,1756974653313,-629.2172538,0.00013698,2]
[383531301,1756974653323,-480.0,0.00013698,2]
[383531302,1756974653332,-480.0,0.00013698,2]
[383531303,1756974653342,-480.0,0.00013698,2]
[383531304,1756974653351,-878.73,0.00013698,2]
[383531305,1756974653363,-619.42691926,0.00013698,2]
[383531306,1756974653373,-483.5815512,0.00013698,2]
[383531307,1756974653384,-480.5090482,0.00013698,2]
[383531308,1756974653395,-481.52844129,0.00013698,2]
[383531309,1756974653404,-480.0,0.00013698,2]
[383531310,1756974653413,-480.0,0.00013698,2]
[383531311,1756974653423,-483.21499205,0.00013698,2]
[383531312,1756974653433,-480.0,0.00013698,2]
[383531313,1756974653443,-480.95506669,0.00013698,2]
[383531314,1756974653452,-481.23731496,0.00013698,2]
[383531315,1756974653462,-487.99357753,0.00013698,2]
[383531316,1756974653472,-484.74974097,0.00013698,2]
[383531317,1756974653482,-480.0,0.00013698,2]
[383531318,1756974653492,-480.0,0.00013698,2]
[383531319,1756974653502,-151.0,0.00013698,2]
[383531320,1756974653512,-480.0,0.00013698,2]
[383531321,1756974653522,-480.0,0.00013698,2]
[383531322,1756974653531,-480.0,0.00013698,2]
[383531323,1756974653542,-214.87358302,0.00013698,2]
[383531324,1756974653551,-26129.9352897,0.00013699,2]
[383531325,1756974653562,-904.571102,0.00013699,2]
[383531326,1756974653571,-919.8023103,0.00013699,2]
[383531327,1756974653581,-180.279293,0.00013699,2]
[383531328,1756974653591,-180.279293,0.00013699,2]
[383531329,1756974653600,-180.279293,0.00013699,2]
[383531330,1756974653609,-180.279293,0.00013699,2]
[383531331,1756974653618,-180.279293,0.00013699,2]
[383531332,1756974653627,-180.279293,0.00013699,2]
[383531333,1756974653635,-180.279293,0.00013699,2]
[383531334,1756974653643,-180.279293,0.00013699,2]
[383531335,1756974653651,-180.279293,0.00013699,2]
[383531336,1756974653659,-180.279293,0.00013699,2]
[383531337,1756974653668,-180.279293,0.00013699,2]
[383531338,1756974653676,-180.279293,0.00013699,2]
[383531339,1756974653685,-180.279293,0.00013699,2]
[383531340,1756974653694,-180.279293,0.00013699,2]
[383531341,1756974653703,-180.279293,0.00013699,2]
[383531342,1756974653713,-180.279293,0.00013699,2]
[383531343,1756974653724,-180.279293,0.00013699,2]
[383531344,1756974653734,-180.279293,0.00013699,2]
[383531345,1756974653745,-180.279293,0.00013699,2]
[383531346,1756974653761,-180.279291,0.00013699,2]
[383531347,1756974653773,-151.0,0.00013699,2]
[383531348,1756974653783,-151.0,0.00013699,2]
[383531349,1756974653793,-151.0,0.00013699,2]
[383531350,1756974653802,-151.0,0.00013699,2]
[383531351,1756974653813,-151.0,0.00013699,2]
[383531352,1756974653823,-151.0,0.00013699,2]
[383531353,1756974653833,-207.967936,0.00013699,2]
[383531354,1756974653843,-185.423392,0.00013699,2]
[383531355,1756974653852,-185.423392,0.00013699,2]
[383531356,1756974653861,-185.423392,0.00013699,2]
[383531357,1756974653869,-185.423392,0.00013699,2]
[383531358,1756974653878,-185.423392,0.00013699,2]
[383531359,1756974653887,-185.423392,0.00013699,2]
[383531360,1756974653896,-185.423392,0.00013699,2]
[383531361,1756974653906,-185.423392,0.00013699,2]
[383531362,1756974653916,-185.423392,0.00013699,2]
[383531363,1756974653925,-185.423392,0.00013699,2]
[383531364,1756974653935,-185.423392,0.00013699,2]
[383531365,1756974653945,-185.423392,0.00013699,2]
[383531366,1756974653955,-185.423392,0.00013699,2]
[383531367,1756974653966,-185.423392,0.00013699,2]
[383531368,1756974653975,-185.423392,0.00013699,2]
[383531369,1756974653985,-185.423392,0.00013699,2]
[383531370,1756974653995,-185.423392,0.00013699,2]
[383531371,1756974654004,-185.423392,0.00013699,2]
[383531372,1756974654013,-185.423392,0.00013699,2]
[383531373,1756974654023,-185.423392,0.00013699,2]
[383531374,1756974654032,-1389.731677,0.00013699,2]
[383531375,1756974654042,-1982.59061554,0.00013699,2]
[383531376,1756974654285,-15071.03987586,0.00013699,2]
[383531377,1756974654295,-1000.0,0.00013699,2]
[383531378,1756974654306,-1000.0,0.00013699,2]
[383531379,1756974654315,-151.0,0.00013699,2]
[383531380,1756974654325,-1000.0,0.00013699,2]
[383531381,1756974654334,-151.0,0.00013699,2]
[383531382,1756974654344,-219.51519825,0.00013699,2]
[383531383,1756974654368,-780.48480175,0.00013699,2]
[383531384,1756974654378,-151.0,0.00013699,2]
[383531385,1756974654388,-772.07696088,0.00013699,2]
[383531386,1756974654400,-227.92303912,0.00013699,2]
[383531387,1756974654410,-162.27653484,0.00013699,2]
[383531388,1756974654471,-500.0,0.00013141,2]
[383531389,1756974654481,-837.72346516,0.00013699,2]
[383531390,1756974654491,-1000.0,0.00013699,2]
[383531391,1756974654501,-1000.0,0.00013699,2]
[383531392,1756974654511,-1000.0,0.00013699,2]
[383531393,1756974654520,-1000.0,0.00013699,2]
[383531394,1756974654529,-1000.0,0.00013699,2]
[383531395,1756974654539,-1000.0,0.00013699,2]
[383531396,1756974654549,-1000.0,0.00013699,2]
[383531397,1756974654558,-1000.0,0.00013699,2]
[383531398,1756974654567,-1000.0,0.00013699,2]
[383531399,1756974654577,-1000.0,0.00013699,2]
[383531400,1756974654586,-1000.0,0.00013699,2]
[383531401,1756974654596,-1000.0,0.00013699,2]
[383531402,1756974654605,-1000.0,0.00013699,2]
[383531403,1756974654614,-1000.0,0.00013699,2]
[383531404,1756974654624,-1000.0,0.00013699,2]
[383531405,1756974654634,-791.91974,0.00013699,2]
[383531406,1756974654647,-151.0,0.00013699,2]
[383531407,1756974654657,-151.0,0.00013699,2]
[383531408,1756974654667,-151.0,0.00013699,2]
[383531409,1756974654677,-157.68064,0.00013699,2]
[383531410,1756974654687,-151.0,0.000137,2]
[383531411,1756974654698,-151.0,0.000137,2]
[383531412,1756974654708,-151.0,0.000137,2]
[383531413,1756974654717,-153.0,0.000137,2]
[383531414,1756974654727,-307.2273425,0.000137,2]
[383531415,1756974654736,-447.5705717,0.000137,2]
[383531416,1756974654746,-151.0,0.000137,2]
[383531417,1756974654756,-151.0,0.000137,2]
[383531418,1756974654766,-1869.29,0.00013706,2]
[383531419,1756974654776,-292.47,0.00013707,2]
[383531420,1756974654786,-209.0,0.00013799,2]
[383531421,1756974654795,-213.0,0.00013799,2]
[383531422,1756974654805,-309.0,0.000138,2]
[383531423,1756974654815,-4000.0,0.00013848,2]
[383531424,1756974654824,-160.0,0.00013876,2]
[383531425,1756974654834,-160.0,0.00013876,2]
[383531426,1756974654845,-160.0,0.00013876,2]
[383531427,1756974654855,-10476.51933727,0.00013878,2]
[383531428,1756974654867,-91.16343983,0.00013878,2]
[383531429,1756974654878,-160.0,0.00013879,2]
[383531430,1756974654888,-160.0,0.00013879,2]
[383531431,1756974654898,-26.48989607,0.00013879,2]
[383531432,1756974654910,-233.9267706,0.00013879,2]
[383531433,1756974654919,-232.93421481,0.00013879,2]
[383531434,1756974654929,-217.5338025,0.00013879,2]
[383531435,1756974654939,-293.04928059,0.00013879,2]
[383531436,1756974654951,-553.36175171,0.00013879,2]
[383531437,1756974654961,-417.15472785,0.00013879,2]
[383531438,1756974654971,-160.0,0.00013879,2]
[383531439,1756974654982,-160.0,0.00013879,2]
[383531440,1756974654992,-160.0,0.00013879,2]
[383531441,1756974655002,-160.0,0.00013879,2]
[383531442,1756974655012,-530.40833076,0.00013879,2]
[383531443,1756974655022,-227.90448127,0.00013905,2]
[383531444,1756974655032,-198.0,0.00013949,2]
[383531445,1756974655041,-500.0,0.00013949,2]
[383531446,1756974655051,-198.0,0.00013949,2]
[383531447,1756974655064,-198.0,0.00013949,2]
[383531448,1756974655073,-151.0,0.00013949,2]
[383531449,1756974655083,-198.0,0.00013949,2]
[383531450,1756974655095,-500.0,0.00013949,2]
[383531451,1756974655105,-151.0,0.0001395,2]
[383531452,1756974655114,-162.23667509,0.0001395,2]
[383531453,1756974655124,-5000.0,0.00013962,2]
[383531454,1756974655134,-201.41164677,0.00013971,2]
[383531455,1756974655147,-480.0,0.00013972,2]
[383531456,1756974655157,-481.81996786,0.00013972,2]
[383531457,1756974655167,-480.0,0.00013972,2]
[383531458,1756974655176,-480.0,0.00013972,2]
[383531459,1756974655186,-480.0,0.00013972,2]
[383531460,1756974655195,-480.0,0.00013972,2]
[383531461,1756974655205,-409.18584205,0.00013972,2]
[383531462,1756974655216,-480.0,0.00013972,2]
[383531463,1756974655227,-400.69404245,0.00013972,2]
[383531464,1756974655237,-480.83753717,0.00013972,2]
[383531465,1756974655247,-480.0,0.00013972,2]
[383531466,1756974655256,-481.9026613,0.00013972,2]
[383531467,1756974655266,-480.0,0.00013972,2]
[383531468,1756974655276,-480.0,0.00013972,2]
[383531469,1756974655286,-204.08233572,0.00013972,2]
[383531470,1756974655449,-500.0,0.00013274,2]
[383531471,1756974655460,-500.0,0.00013274,2]
[383531472,1756974655469,-462.9066118,0.00013274,2]
[383531473,1756974655481,-37.0933882,0.00013274,2]
[383531474,1756974655491,-500.0,0.00013274,2]
[383531475,1756974655501,-475.60930174,0.00013274,2]
[383531476,1756974655510,-500.0,0.00013274,2]
[383531477,1756974655520,-500.0,0.00013274,2]
[383531478,1756974655531,-500.0,0.00013274,2]
[383531479,1756974655540,-500.0,0.00013274,2]
[383531480,1756974655550,-500.0,0.00013274,2]
[383531481,1756974655559,-418.10198643,0.00013274,2]
[383531482,1756974655580,-81.89801357,0.00013274,2]
[383531483,1756974655592,-500.0,0.00013274,2]
[383531484,1756974655689,-200.10570434,0.00013401,2]
[383531485,1756974655703,-275.91766428,0.00013972,2]
[383531486,1756974655713,-480.0,0.00013972,2]
[383531487,1756974655723,-616.55440778,0.00013972,2]
[383531488,1756974655733,-480.0,0.00013972,2]
[383531489,1756974655743,-554.03,0.00013972,2]
[383531490,1756974655753,-123.65144353,0.00013972,2]
[383531491,1756974655773,-356.34855647,0.00013972,2]
[383531492,1756974655783,-182.83743478,0.00013972,2]
[383531493,1756974655792,-480.0,0.00013972,2]
[383531494,1756974655801,-480.0,0.00013972,2]
[383531495,1756974655811,-481.98376782,0.00013972,2]
[383531496,1756974655821,-481.58090109,0.00013972,2]
[383531497,1756974655830,-480.0,0.00013972,2]
[383531498,1756974655840,-480.0,0.00013972,2]
[383531499,1756974655850,-480.0,0.00013972,2]
[383531500,1756974655859,-154.24,0.00013972,2]
[383531501,1756974655869,-480.0,0.00013972,2]
[383531502,1756974655879,-63.00933985,0.00013972,2]
[383531503,1756974655891,-419.12648383,0.00013972,2]
[383531504,1756974655900,-480.0,0.00013972,2]
[383531505,1756974655910,-484.14334762,0.00013972,2]
[383531506,1756974655919,-480.0,0.00013972,2]
[383531507,1756974655929,-480.0,0.00013972,2]
[383531508,1756974655938,-482.31000798,0.00013972,2]
[383531509,1756974655948,-482.74724981,0.00013972,2]
[383531510,1756974655958,-480.0,0.00013972,2]
[383531511,1756974655968,-480.0,0.00013972,2]
[383531512,1756974655978,-480.0,0.00013972,2]
[383531513,1756974655988,-480.0,0.00013972,2]
[383531514,1756974655998,-480.0,0.00013972,2]
[383531515,1756974656008,-28.18199851,0.00013972,2]
[383531516,1756974656020,-451.81800149,0.00013972,2]
[383531517,1756974656030,-481.75935862,0.00013972,2]
[383531518,1756974656039,-482.66486813,0.00013972,2]
[383531519,1756974656049,-480.0,0.00013972,2]
[383531520,1756974656058,-480.0,0.00013972,2]
[383531521,1756974656068,-480.0,0.00013972,2]
[383531522,1756974656077,-143.75777176,0.00013972,2]
[383531523,1756974671367,3124.61090115,0.0001301,2]
[383531524,1756974679615,3124.61090115,0.0001301,2]
[383531525,1756974695484,1595.90139748,0.0001301,2]
[383531526,1756974695508,1512.20838078,0.0001301,2]
[383531527,1756974703450,1393.64370621,0.0001301,2]
[383531540,1756974866326,3124.61090115,0.0001301,2]
[383531544,1756974889840,1160.50705477,0.00013042,2]
[383531547,1756974913448,1160.50705477,0.00013042,2]
[383531548,1756974934955,-300.0,0.0001318,2]
[383531549,1756974934985,-300.0,0.0001318,2]
[383531550,1756974935015,-300.0,0.0001318,2]
[383531551,1756974935044,-300.0,0.0001318,2]
[383531552,1756974935073,-1200.0,0.0001318,2]
[383531553,1756974935895,-6848.54290232,0.00013181,2]
[383531554,1756974935966,-10000.01,0.00013181,2]
[383531555,1756974936116,-10000.01,0.00013181,2]
[383531556,1756974936226,-10000.01,0.00013181,2]
[383531557,1756974937101,1200.0,0.00013048,2]
[383531558,1756974960588,448.53290232,0.00013049,2]
[383531559,1756974960615,10000.01,0.00013049,2]
[383531560,1756974960641,2702.88419536,0.00013049,2]
[383531563,1756974976214,652.11,0.00029774,120]
[383531564,1756974984037,300.0,0.00013048,2]
[383531565,1756974989337,1000.0,0.00012349,2]
[383531566,1756975007922,300.0,0.00013048,2]
[383531567,1756975031394,1500.0,0.00013048,2]
[383531568,1756975046967,1160.50705477,0.00013081,2]
[383531569,1756975056590,1500.0,0.00013048,2]
[383531570,1756975080977,1500.0,0.00013048,2]
[383531571,1756975082303,-1200.0,0.0001318,2]
[383531572,1756975088138,-300.0,0.0001318,2]
[383531573,1756975088167,-500.0,0.00013181,2]
[383531574,1756975088196,-350.71803872,0.00013181,2]
[383531575,1756975088228,-500.0,0.00013181,2]
[383531576,1756975088260,-500.0,0.00013181,2]
[383531577,1756975088290,-500.0,0.00013181,2]
[383531578,1756975088321,-500.0,0.00013181,2]
[383531579,1756975088349,-557.53741237,0.00013181,2]
[383531580,1756975088381,-500.0,0.00013181,2]
[383531581,1756975088413,-500.0,0.00013181,2]
[383531582,1756975088446,-83.49909782,0.00013181,2]
[383531583,1756975088596,-416.50090218,0.00013181,2]
[383531584,1756975088625,-500.0,0.00013181,2]
[383531585,1756975088654,-500.0,0.00013181,2]
[383531586,1756975088804,-500.0,0.00013181,2]
[383531587,1756975088832,-500.0,0.00013181,2]
[383531588,1756975088861,-500.0,0.00013181,2]
[383531589,1756975088889,-500.0,0.00013181,2]
[383531590,1756975088917,-200.0,0.00013181,2]
[383531591,1756975088944,-200.0,0.00013181,2]
[383531592,1756975088973,-500.0,0.00013181,2]
[383531593,1756975089002,-500.0,0.00013181,2]
[383531594,1756975089170,-400.0,0.00013181,2]
[383531595,1756975089199,-500.0,0.00013181,2]
[383531596,1756975089229,-500.0,0.00013181,2]
[383531597,1756975089263,-428.2787051,0.00013181,2]
[383531598,1756975089293,-500.0,0.00013181,2]
[383531599,1756975089323,-500.0,0.00013181,2]
[383531600,1756975089350,-500.0,0.00013181,2]
[383531601,1756975089381,-500.0,0.00013181,2]
[383531602,1756975089408,-500.0,0.00013181,2]
[383531603,1756975089440,-500.0,0.00013181,2]
[383531604,1756975089592,-500.0,0.00013181,2]
[383531605,1756975089622,-500.0,0.00013181,2]
[383531606,1756975089653,-500.0,0.00013181,2]
[383531607,1756975089681,-500.0,0.00013181,2]
[383531608,1756975089708,-567.18326421,0.00013181,2]
[383531609,1756975089737,-500.0,0.00013181,2]
[383531610,1756975089765,-500.0,0.00013181,2]
[383531611,1756975089794,-500.0,0.00013181,2]
[383531612,1756975089821,-500.0,0.00013181,2]
[383531613,1756975089852,-365.64347158,0.00013181,2]
[383531614,1756975089970,-134.35652842,0.00013181,2]
[383531615,1756975089998,-500.0,0.00013181,2]
[383531616,1756975090027,-500.0,0.00013181,2]
[383531617,1756975090057,-500.0,0.00013181,2]
[383531618,1756975090087,-500.0,0.00013181,2]
[383531619,1756975090116,-500.0,0.00013181,2]
[383531620,1756975090144,-500.0,0.00013181,2]
[383531621,1756975090175,-500.0,0.00013181,2]
[383531622,1756975090204,-500.0,0.00013181,2]
[383531623,1756975090233,-500.0,0.00013181,2]
[383531624,1756975090266,-231.29694316,0.00013181,2]
[383531625,1756975090340,-268.70305684,0.00013181,2]
[383531626,1756975090370,-500.0,0.00013181,2]
[383531627,1756975090402,-500.0,0.00013181,2]
[383531628,1756975090431,-400.0,0.00013181,2]
[383531629,1756975090464,-500.0,0.00013181,2]
[383531630,1756975090496,-563.96363434,0.00013181,2]
[383531631,1756975090525,-500.0,0.00013181,2]
[383531632,1756975090655,-500.0,0.00013181,2]
[383531633,1756975090684,-500.0,0.00013181,2]
[383531634,1756975090711,-278.31565323,0.00013181,2]
[383531635,1756975090743,-478.04531118,0.00013181,2]
[383531636,1756975090850,-21.95468882,0.00013181,2]
[383531637,1756975090878,-599.72734607,0.00013181,2]
[383531638,1756975090906,-456.36249695,0.00013181,2]
[383531639,1756975090934,-500.0,0.00013181,2]
[383531640,1756975090967,-500.0,0.00013181,2]
[383531641,1756975092520,-3421.85858347,0.00013182,2]
[383531642,1756975092540,-10000.01,0.00013182,2]
[383531645,1756975104313,36.61874987,0.0001305,2]
[383531646,1756975104344,6715.44376172,0.0001305,2]
[383531647,1756975112342,-3247.94748841,0.00013182,2]
[383531648,1756975112450,-10000.01,0.00013182,2]
[383531649,1756975112565,-10000.01,0.00013182,2]
[383531650,1756975112722,-10000.01,0.00013182,2]
[383531651,1756975112849,-10000.01,0.00013182,2]
[383531652,1756975113000,-10000.01,0.00013182,2]
[383531653,1756975113161,-10000.01,0.00013182,2]
[383531654,1756975113301,-10000.01,0.00013182,2]
[383531655,1756975113431,-10000.01,0.00013182,2]
[383531656,1756975113587,-10000.01,0.00013182,2]
[383531657,1756975122310,-500.0,0.00013181,2]
[383531658,1756975122339,-500.0,0.00013181,2]
[383531659,1756975122368,-499.52926934,0.00013181,2]
[383531660,1756975122429,-7000.95146132,0.00013182,2]
[383531661,1756975122453,-10000.01,0.00013182,2]
[383531662,1756975122576,-10000.01,0.00013182,2]
[383531663,1756975122708,-10000.01,0.00013182,2]
[383531664,1756975122826,-10000.01,0.00013182,2]
[383531665,1756975123026,-10000.01,0.00013182,2]
[383531666,1756975123155,-10000.01,0.00013182,2]
[383531667,1756975123276,-10000.01,0.00013182,2]
[383531668,1756975123394,-10000.01,0.00013182,2]
[383531669,1756975123514,-10000.01,0.00013182,2]
[383531670,1756975132324,-10000.01,0.00013182,2]
[383531671,1756975132471,-10000.01,0.00013182,2]
[383531672,1756975132687,-10000.01,0.00013182,2]
[383531673,1756975133142,-10000.01,0.00013182,2]
[383531674,1756975133328,-10000.01,0.00013182,2]
[383531675,1756975133474,-10000.01,0.00013182,2]
[383531676,1756975133693,-10000.01,0.00013182,2]
[383531677,1756975133834,-10000.01,0.00013182,2]
[383531678,1756975138767,-10000.01,0.00013182,2]
[383531679,1756975138916,-10000.01,0.00013182,2]
[383531680,1756975152338,-300.0,0.0001318,2]
[383531681,1756975152369,-500.0,0.00013181,2]
[383531682,1756975152398,-500.0,0.00013181,2]
[383531683,1756975152426,-500.0,0.00013181,2]
[383531684,1756975152455,-500.0,0.00013181,2]
[383531685,1756975152484,-500.0,0.00013181,2]
[383531686,1756975152513,-341.34598221,0.00013181,2]
[383531687,1756975152542,-500.0,0.00013181,2]
[383531688,1756975152572,-500.0,0.00013181,2]